[Event "*** Titled Tuesday Blitz"]
[Site "Chess.com"]
[Date "2019.09.03"]
[Round "6"]
[White "Bigfish1995"]
[Black "Gordima"]
[Result "0-1"]
[WhiteElo "3044"]
[BlackElo "2828"]
[TimeControl "180+2"]
[EndTime "16:22:06 PDT"]
[Termination "Gordima won on time"]

1. d4 {[%clk 0:03:01.9]} 1... Nf6 {[%clk 0:02:51.6]} 2. c4 {[%clk 0:03:03.2]}
2... g6 {[%clk 0:02:50.6]} 3. h4 {[%clk 0:03:04.1]} 3... Bg7 {[%clk 0:02:42.5]}
4. Nc3 {[%clk 0:03:05.2]} 4... d6 {[%clk 0:02:39.7]} 5. e4 {[%clk 0:03:05.5]}
5... Na6 {[%clk 0:02:24.6]} 6. Be2 {[%clk 0:03:02.7]} 6... h5 {[%clk 0:02:19.3]}
7. Bg5 {[%clk 0:02:54]} 7... c6 {[%clk 0:02:09.7]} 8. Qd2 {[%clk 0:02:49.9]}
8... Nc7 {[%clk 0:02:07]} 9. f3 {[%clk 0:02:36.4]} 9... Rb8 {[%clk 0:02:05.3]}
10. a4 {[%clk 0:02:31.2]} 10... a5 {[%clk 0:02:02.4]} 11. Nh3 {[%clk 0:02:30.6]}
11... Bxh3 {[%clk 0:01:58.7]} 12. Rxh3 {[%clk 0:02:31.4]} 12... Ne6 {[%clk
0:01:58.5]} 13. Be3 {[%clk 0:02:31.8]} 13... Nd7 {[%clk 0:01:57.5]} 14. d5
{[%clk 0:02:15.4]} 14... Nec5 {[%clk 0:01:57.2]} 15. Ra3 {[%clk 0:02:13]} 15...
Qb6 {[%clk 0:01:53.2]} 16. Kf2 {[%clk 0:02:00.4]} 16... Qb4 {[%clk 0:01:47]} 17.
Qc2 {[%clk 0:01:36.3]} 17... Ne5 {[%clk 0:01:25.1]} 18. Nd1 {[%clk 0:01:34.8]}
18... O-O {[%clk 0:01:19.8]} 19. Rh1 {[%clk 0:01:26.5]} 19... f5 {[%clk
0:01:13.5]} 20. exf5 {[%clk 0:01:27.5]} 20... Rxf5 {[%clk 0:01:14.4]} 21. Kg3
{[%clk 0:01:19.4]} 21... Rbf8 {[%clk 0:01:09.6]} 22. f4 {[%clk 0:01:17.4]} 22...
Ned7 {[%clk 0:00:57.5]} 23. dxc6 {[%clk 0:01:14.2]} 23... bxc6 {[%clk
0:00:57.7]} 24. Kh3 {[%clk 0:01:15.1]} 24... e5 {[%clk 0:00:50.9]} 25. g4 {[%clk
0:00:56.9]} 25... R5f6 {[%clk 0:00:30.2]} 26. gxh5 {[%clk 0:00:54.1]} 26... exf4
{[%clk 0:00:30.5]} 27. Bd4 {[%clk 0:00:36.5]} 27... Rf5 {[%clk 0:00:31.2]} 28.
Bxg7 {[%clk 0:00:35.6]} 28... Kxg7 {[%clk 0:00:31.5]} 29. Bg4 {[%clk 0:00:36.9]}
29... R5f6 {[%clk 0:00:27.2]} 30. Bxd7 {[%clk 0:00:27.2]} 30... Nxd7 {[%clk
0:00:28.1]} 31. Rg1 {[%clk 0:00:28.8]} 31... Ne5 {[%clk 0:00:27.6]} 32. Nf2
{[%clk 0:00:23.3]} 32... Qb7 {[%clk 0:00:25.3]} 33. Rg5 {[%clk 0:00:22.5]} 33...
Qd7+ {[%clk 0:00:25.8]} 34. Kh2 {[%clk 0:00:23.8]} 34... f3 {[%clk 0:00:22.4]}
35. Re3 {[%clk 0:00:21.5]} 35... Qf7 {[%clk 0:00:14.3]} 36. Kg3 {[%clk
0:00:19.8]} 36... Nxc4 {[%clk 0:00:12.3]} 37. Re4 {[%clk 0:00:14.8]} 37... Ne5
{[%clk 0:00:13.2]} 38. Qc3 {[%clk 0:00:10.4]} 38... Kh7 {[%clk 0:00:11.9]} 39.
hxg6+ {[%clk 0:00:09.8]} 39... Rxg6 {[%clk 0:00:12.6]} 40. Qe3 {[%clk
0:00:08.6]} 40... Rxg5+ {[%clk 0:00:13.3]} 41. hxg5 {[%clk 0:00:09.3]} 41... Kg6
{[%clk 0:00:10.6]} 42. Rh4 {[%clk 0:00:10.3]} 42... Qf5 {[%clk 0:00:09.2]} 43.
Rh6+ {[%clk 0:00:09.4]} 43... Kg7 {[%clk 0:00:10.6]} 44. Rxd6 {[%clk 0:00:10.4]}
44... Rf7 {[%clk 0:00:04.6]} 45. Rh6 {[%clk 0:00:10.4]} 45... Ng6 {[%clk
0:00:03.8]} 46. Qd4+ {[%clk 0:00:11.1]} 46... Kg8 {[%clk 0:00:03.7]} 47. Qg4
{[%clk 0:00:06.1]} 47... Qe5+ {[%clk 0:00:04.9]} 48. Kh3 {[%clk 0:00:07.5]}
48... Kg7 {[%clk 0:00:05.1]} 49. Qg3 {[%clk 0:00:06.1]} 49... Qf5+ {[%clk
0:00:05.7]} 50. Kh2 {[%clk 0:00:07.6]} 50... Re7 {[%clk 0:00:04.5]} 51. Qd6
{[%clk 0:00:07.6]} 51... Rf7 {[%clk 0:00:04.4]} 52. Qd4+ {[%clk 0:00:08]} 52...
Kg8 {[%clk 0:00:05.9]} 53. Qd8+ {[%clk 0:00:06.9]} 53... Kg7 {[%clk 0:00:07.1]}
54. Qd4+ {[%clk 0:00:06.4]} 54... Kg8 {[%clk 0:00:08.4]} 55. Ne4 {[%clk
0:00:05.6]} 55... f2 {[%clk 0:00:07.8]} 56. Qd8+ {[%clk 0:00:04.7]} 56... Kg7
{[%clk 0:00:08.6]} 57. Qd4+ {[%clk 0:00:05.6]} 57... Kg8 {[%clk 0:00:09.9]} 58.
Nf6+ {[%clk 0:00:06.1]} 58... Rxf6 {[%clk 0:00:10]} 59. gxf6 {[%clk 0:00:07.5]}
59... Qf4+ {[%clk 0:00:08.8]} 60. Qxf4 {[%clk 0:00:08.4]} 60... Nxf4 {[%clk
0:00:10.7]} 61. f7+ {[%clk 0:00:03.1]} 61... Kxf7 {[%clk 0:00:10.1]} 0-1

[Event "*** Titled Tuesday Blitz"]
[Site "Chess.com"]
[Date "2019.09.03"]
[Round "6"]
[White "r31415"]
[Black "iLuusions"]
[Result "0-1"]
[WhiteElo "2360"]
[BlackElo "2607"]
[TimeControl "180+2"]
[EndTime "16:22:07 PDT"]
[Termination "iLuusions won by resignation"]

1. e4 {[%clk 0:03:01.9]} 1... c5 {[%clk 0:02:58.1]} 2. Nf3 {[%clk 0:03:02.7]}
2... e6 {[%clk 0:02:59]} 3. d4 {[%clk 0:03:04.1]} 3... cxd4 {[%clk 0:03:00.9]}
4. Nxd4 {[%clk 0:03:05.5]} 4... a6 {[%clk 0:02:59.9]} 5. c4 {[%clk 0:03:06.4]}
5... Nf6 {[%clk 0:02:57.9]} 6. Nc3 {[%clk 0:03:07.5]} 6... Bb4 {[%clk
0:02:58.4]} 7. Qd3 {[%clk 0:03:07.7]} 7... Qc7 {[%clk 0:02:58.4]} 8. Nc2 {[%clk
0:02:55.9]} 8... Bxc3+ {[%clk 0:02:59.2]} 9. Qxc3 {[%clk 0:02:57.1]} 9... d6
{[%clk 0:03:00.7]} 10. Be3 {[%clk 0:02:44.2]} 10... e5 {[%clk 0:03:00.8]} 11. f3
{[%clk 0:02:42.7]} 11... Be6 {[%clk 0:03:00.1]} 12. Rd1 {[%clk 0:02:25.4]} 12...
Nbd7 {[%clk 0:02:57.7]} 13. Be2 {[%clk 0:02:10.9]} 13... Rc8 {[%clk 0:02:53.3]}
14. Na3 {[%clk 0:02:01.9]} 14... b5 {[%clk 0:02:46.8]} 15. cxb5 {[%clk
0:01:40.9]} 15... Qxc3+ {[%clk 0:02:35.3]} 16. bxc3 {[%clk 0:01:41.6]} 16...
Rxc3 {[%clk 0:02:37.2]} 17. Rd3 {[%clk 0:01:28.2]} 17... Rxd3 {[%clk 0:02:35.8]}
18. Bxd3 {[%clk 0:01:29]} 18... axb5 {[%clk 0:02:37.2]} 19. Nxb5 {[%clk
0:01:15.8]} 19... Ke7 {[%clk 0:02:38.5]} 20. a3 {[%clk 0:01:10.8]} 20... d5
{[%clk 0:02:30.9]} 21. Bd2 {[%clk 0:01:03.4]} 21... Rc8 {[%clk 0:02:22.7]} 22.
Bb4+ {[%clk 0:01:04.3]} 22... Kd8 {[%clk 0:02:23.5]} 23. Ba5+ {[%clk 0:01:04.4]}
23... Ke7 {[%clk 0:02:23.4]} 24. Bb4+ {[%clk 0:01:05.2]} 24... Kd8 {[%clk
0:02:24.6]} 25. Kd2 {[%clk 0:00:43]} 25... dxe4 {[%clk 0:02:13]} 26. fxe4 {[%clk
0:00:43.8]} 26... Nc5 {[%clk 0:01:56]} 27. Nd6 {[%clk 0:00:25.5]} 27... Nxd3
{[%clk 0:01:55.5]} 28. Ba5+ {[%clk 0:00:07.6]} 28... Kd7 {[%clk 0:01:34]} 29.
Nxc8 {[%clk 0:00:08.7]} 29... Nxe4+ {[%clk 0:01:30.6]} 30. Kxd3 {[%clk
0:00:02.7]} 30... Nf2+ {[%clk 0:01:30.7]} 31. Ke2 {[%clk 0:00:04.6]} 31... Nxh1
{[%clk 0:01:30.8]} 32. Nb6+ {[%clk 0:00:04.5]} 32... Kc6 {[%clk 0:01:31.4]} 33.
Kf1 {[%clk 0:00:04.7]} 33... Kb5 {[%clk 0:01:25.4]} 34. Bb4 {[%clk 0:00:03.9]}
34... Kxb6 {[%clk 0:01:06]} 35. Kg1 {[%clk 0:00:04.7]} 35... Ng3 {[%clk
0:01:05.3]} 36. hxg3 {[%clk 0:00:05.4]} 36... h5 {[%clk 0:01:06.5]} 37. Kf2
{[%clk 0:00:06.5]} 37... Kc6 {[%clk 0:01:03.7]} 38. Bc3 {[%clk 0:00:03.5]} 38...
f6 {[%clk 0:00:55]} 39. Bb4 {[%clk 0:00:04.8]} 39... Kd5 {[%clk 0:00:50.1]} 40.
Be7 {[%clk 0:00:04.1]} 40... Bd7 {[%clk 0:00:48.2]} 41. Ke3 {[%clk 0:00:03.1]}
41... Bb5 {[%clk 0:00:47.9]} 42. Kf3 {[%clk 0:00:03.7]} 42... f5 {[%clk
0:00:45.7]} 43. Bg5 {[%clk 0:00:03]} 43... g6 {[%clk 0:00:46.1]} 44. Ke3 {[%clk
0:00:03.9]} 44... Bc6 {[%clk 0:00:43.9]} 45. Bd8 {[%clk 0:00:03.5]} 45... Kc4
{[%clk 0:00:44.6]} 46. Kf2 {[%clk 0:00:03.9]} 46... Kd3 {[%clk 0:00:43.6]} 47.
Bf6 {[%clk 0:00:03.4]} 47... Ke4 {[%clk 0:00:41]} 48. Be7 {[%clk 0:00:03.7]}
48... Bb5 {[%clk 0:00:37.3]} 49. Bd6 {[%clk 0:00:03.8]} 49... f4 {[%clk
0:00:19.4]} 50. gxf4 {[%clk 0:00:03.8]} 50... exf4 {[%clk 0:00:21.3]} 51. Be7
{[%clk 0:00:03.8]} 51... Kf5 {[%clk 0:00:22.6]} 52. Kf3 {[%clk 0:00:03.5]} 52...
g5 {[%clk 0:00:20.1]} 53. g3 {[%clk 0:00:03.6]} 53... Bc6+ {[%clk 0:00:15]} 54.
Kf2 {[%clk 0:00:04.4]} 54... fxg3+ {[%clk 0:00:14.2]} 55. Kxg3 {[%clk
0:00:05.2]} 55... h4+ {[%clk 0:00:16.1]} 56. Kh3 {[%clk 0:00:03.4]} 56... Bd7
{[%clk 0:00:15.9]} 57. Kh2 {[%clk 0:00:03.5]} 57... Kf4 {[%clk 0:00:16.6]} 58.
Bd6+ {[%clk 0:00:04.1]} 58... Kf3 {[%clk 0:00:17.7]} 59. Bc7 {[%clk 0:00:04.1]}
59... g4 {[%clk 0:00:18.7]} 60. Bd6 {[%clk 0:00:05.3]} 60... g3+ {[%clk
0:00:18.6]} 61. Kg1 {[%clk 0:00:03.3]} 61... h3 {[%clk 0:00:19.4]} 62. Bxg3
{[%clk 0:00:03]} 62... Kxg3 {[%clk 0:00:19.9]} 63. a4 {[%clk 0:00:04.6]} 63...
h2+ {[%clk 0:00:20.7]} 64. Kf1 {[%clk 0:00:03.7]} 64... h1=Q+ {[%clk 0:00:20.9]}
65. Ke2 {[%clk 0:00:05.6]} 0-1

[Event "*** Titled Tuesday Blitz"]
[Site "Chess.com"]
[Date "2019.09.03"]
[Round "6"]
[White "kuli4ik"]
[Black "beatles_22"]
[Result "1-0"]
[WhiteElo "2798"]
[BlackElo "2670"]
[TimeControl "180+2"]
[EndTime "16:23:38 PDT"]
[Termination "kuli4ik won by resignation"]

1. Nf3 {[%clk 0:02:43.6]} 1... Nf6 {[%clk 0:03:01.1]} 2. g3 {[%clk 0:02:43.9]}
2... g6 {[%clk 0:03:02.2]} 3. b3 {[%clk 0:02:44.8]} 3... Bg7 {[%clk 0:03:04.1]}
4. Bb2 {[%clk 0:02:46.2]} 4... O-O {[%clk 0:03:03.7]} 5. Bg2 {[%clk 0:02:47.3]}
5... d6 {[%clk 0:03:03.5]} 6. d4 {[%clk 0:02:47.6]} 6... Nbd7 {[%clk 0:03:04.6]}
7. O-O {[%clk 0:02:47.8]} 7... c5 {[%clk 0:03:00.4]} 8. c4 {[%clk 0:02:47.9]}
8... Ne4 {[%clk 0:02:47.8]} 9. Nbd2 {[%clk 0:02:47]} 9... Nxd2 {[%clk
0:02:38.8]} 10. Qxd2 {[%clk 0:02:48.9]} 10... a6 {[%clk 0:02:35.5]} 11. dxc5
{[%clk 0:02:48.4]} 11... Bxb2 {[%clk 0:02:37.4]} 12. Qxb2 {[%clk 0:02:49.6]}
12... Nxc5 {[%clk 0:02:38.5]} 13. Rad1 {[%clk 0:02:51]} 13... Rb8 {[%clk
0:02:36.1]} 14. b4 {[%clk 0:02:50.5]} 14... Nd7 {[%clk 0:02:30.3]} 15. Rd4
{[%clk 0:02:36.5]} 15... Qc7 {[%clk 0:02:29.1]} 16. Rfd1 {[%clk 0:02:37.1]}
16... Nb6 {[%clk 0:02:23]} 17. Qc1 {[%clk 0:02:36.3]} 17... Be6 {[%clk
0:02:19.7]} 18. c5 {[%clk 0:02:28.9]} 18... dxc5 {[%clk 0:02:12.2]} 19. bxc5
{[%clk 0:02:30.8]} 19... Nd7 {[%clk 0:02:12.8]} 20. Ng5 {[%clk 0:02:13.9]} 20...
Nxc5 {[%clk 0:02:13]} 21. Nxh7 {[%clk 0:01:51.2]} 21... Rfd8 {[%clk 0:01:43.2]}
22. Qh6 {[%clk 0:01:47.5]} 22... Rxd4 {[%clk 0:01:44]} 23. Rxd4 {[%clk
0:01:47.9]} 23... Qe5 {[%clk 0:01:45.3]} 24. e3 {[%clk 0:01:33.7]} 24... Qg7
{[%clk 0:01:43.6]} 25. Qxg7+ {[%clk 0:01:32.7]} 25... Kxg7 {[%clk 0:01:45.5]}
26. Ng5 {[%clk 0:01:33.6]} 26... Bxa2 {[%clk 0:01:46.6]} 27. Rd2 {[%clk
0:01:25.6]} 27... Bc4 {[%clk 0:01:36.8]} 28. Rc2 {[%clk 0:01:26.7]} 28... b5
{[%clk 0:01:37.9]} 29. Bf1 {[%clk 0:01:27.9]} 29... Bxf1 {[%clk 0:01:28]} 30.
Kxf1 {[%clk 0:01:27.7]} 30... Na4 {[%clk 0:01:16.6]} 31. Rc7 {[%clk 0:01:26.9]}
31... b4 {[%clk 0:01:09.1]} 32. Ne4 {[%clk 0:01:23.3]} 32... b3 {[%clk
0:01:06.1]} 33. Nd2 {[%clk 0:01:24]} 33... b2 {[%clk 0:00:59.4]} 34. Nb1 {[%clk
0:01:25]} 34... Rb3 {[%clk 0:00:55.4]} 35. Ke2 {[%clk 0:01:22.6]} 35... Nb6
{[%clk 0:00:41.7]} 36. Ra7 {[%clk 0:01:08.2]} 36... Na4 {[%clk 0:00:10.4]} 37.
Kd2 {[%clk 0:01:03.6]} 37... Nc5 {[%clk 0:00:11.5]} 38. Kc2 {[%clk 0:01:00.8]}
38... Rb6 {[%clk 0:00:10]} 39. Rxe7 {[%clk 0:00:54.6]} 39... a5 {[%clk
0:00:11.1]} 40. Rc7 {[%clk 0:00:49.3]} 40... Ne4 {[%clk 0:00:10.5]} 41. f3
{[%clk 0:00:48.7]} 41... Ng5 {[%clk 0:00:11.2]} 42. f4 {[%clk 0:00:46.8]} 42...
Nf3 {[%clk 0:00:12.4]} 43. h4 {[%clk 0:00:39.7]} 43... Nh2 {[%clk 0:00:13.4]}
44. e4 {[%clk 0:00:40.2]} 44... Ng4 {[%clk 0:00:14.3]} 45. e5 {[%clk 0:00:40.8]}
45... Ne3+ {[%clk 0:00:15]} 46. Kd3 {[%clk 0:00:40.6]} 46... Nd5 {[%clk
0:00:16.5]} 47. Ra7 {[%clk 0:00:39.1]} 47... Nb4+ {[%clk 0:00:06.1]} 48. Kc3
{[%clk 0:00:36.9]} 48... Nc6 {[%clk 0:00:08]} 49. Ra8 {[%clk 0:00:31.5]} 49...
Ne7 {[%clk 0:00:09.3]} 50. Rxa5 {[%clk 0:00:30.2]} 50... Nf5 {[%clk 0:00:10.7]}
51. g4 {[%clk 0:00:24.8]} 51... Nxh4 {[%clk 0:00:11.8]} 52. Ra7 {[%clk
0:00:23.1]} 52... Ng2 {[%clk 0:00:10.8]} 53. f5 {[%clk 0:00:24.3]} 53... Ne3
{[%clk 0:00:11.9]} 54. f6+ {[%clk 0:00:25.2]} 54... Kg8 {[%clk 0:00:13.3]} 55.
g5 {[%clk 0:00:22.7]} 55... Rb8 {[%clk 0:00:10.5]} 56. e6 {[%clk 0:00:22.2]}
56... fxe6 {[%clk 0:00:12.4]} 57. Rg7+ {[%clk 0:00:22]} 57... Kf8 {[%clk
0:00:13.9]} 58. Rxg6 {[%clk 0:00:23.2]} 58... Nd5+ {[%clk 0:00:15.8]} 59. Kd4
{[%clk 0:00:22.5]} 59... Nf4 {[%clk 0:00:13.9]} 60. Rh6 {[%clk 0:00:23.6]} 60...
Kf7 {[%clk 0:00:14.1]} 61. Ke5 {[%clk 0:00:23]} 61... Nd3+ {[%clk 0:00:13.9]}
62. Ke4 {[%clk 0:00:22.8]} 62... Nc5+ {[%clk 0:00:14.3]} 63. Kd4 {[%clk
0:00:23.9]} 63... Nb3+ {[%clk 0:00:14.4]} 64. Kc3 {[%clk 0:00:24.1]} 64... Nc5
{[%clk 0:00:15.1]} 65. Kd4 {[%clk 0:00:20.6]} 65... Nb3+ {[%clk 0:00:16]} 66.
Kc4 {[%clk 0:00:22]} 66... e5 {[%clk 0:00:14.2]} 67. Rh7+ {[%clk 0:00:20.4]}
67... Kg6 {[%clk 0:00:15.6]} 68. Rg7+ {[%clk 0:00:20]} 68... Kf5 {[%clk
0:00:17]} 69. f7 {[%clk 0:00:21.3]} 69... Na5+ {[%clk 0:00:18.5]} 70. Kd3 {[%clk
0:00:21.3]} 70... Ke6 {[%clk 0:00:16.1]} 71. g6 {[%clk 0:00:20.1]} 71... Nc6
{[%clk 0:00:16.4]} 72. Rg8 {[%clk 0:00:20]} 72... Ke7 {[%clk 0:00:17.4]} 73. Nc3
{[%clk 0:00:17.1]} 73... Rf8 {[%clk 0:00:18.7]} 74. Kc2 {[%clk 0:00:16.3]} 74...
Nb4+ {[%clk 0:00:15.7]} 75. Kxb2 {[%clk 0:00:16.8]} 75... e4 {[%clk 0:00:15.9]}
76. Nxe4 {[%clk 0:00:16.9]} 76... Nd3+ {[%clk 0:00:16.4]} 77. Kc3 {[%clk
0:00:17.1]} 77... Ne5 {[%clk 0:00:18.3]} 78. g7 {[%clk 0:00:17.1]} 78... Rxf7
{[%clk 0:00:18.4]} 79. Re8+ {[%clk 0:00:17.8]} 79... Kxe8 {[%clk 0:00:19.6]} 80.
g8=Q+ {[%clk 0:00:19.3]} 80... Ke7 {[%clk 0:00:21.5]} 81. Qg5+ {[%clk
0:00:18.9]} 81... Ke6 {[%clk 0:00:22.9]} 82. Qh6+ {[%clk 0:00:17.5]} 82... Kd5
{[%clk 0:00:22.6]} 83. Ng5 {[%clk 0:00:18.2]} 83... Rc7+ {[%clk 0:00:22.9]} 84.
Kd2 {[%clk 0:00:19]} 84... Nc4+ {[%clk 0:00:15.7]} 85. Ke2 {[%clk 0:00:19.9]}
85... Ne5 {[%clk 0:00:15.1]} 86. Qe6+ {[%clk 0:00:19.3]} 1-0

[Event "*** Titled Tuesday Blitz"]
[Site "Chess.com"]
[Date "2019.09.03"]
[Round "7"]
[White "tbalabayev"]
[Black "Gentlejimmy7"]
[Result "1-0"]
[WhiteElo "2393"]
[BlackElo "2495"]
[TimeControl "180+2"]
[EndTime "16:31:43 PDT"]
[Termination "tbalabayev won by resignation"]

1. Nf3 {[%clk 0:03:01.9]} 1... Nf6 {[%clk 0:02:57.7]} 2. g3 {[%clk 0:03:03.3]}
2... g6 {[%clk 0:02:59.1]} 3. Bg2 {[%clk 0:03:05.2]} 3... Bg7 {[%clk 0:03:00.8]}
4. O-O {[%clk 0:03:07.1]} 4... O-O {[%clk 0:03:02.4]} 5. d3 {[%clk 0:03:09]}
5... d5 {[%clk 0:03:04.1]} 6. Nbd2 {[%clk 0:03:10.9]} 6... Nc6 {[%clk
0:03:04.4]} 7. e4 {[%clk 0:03:12.5]} 7... e5 {[%clk 0:03:06]} 8. Re1 {[%clk
0:03:11.6]} 8... a5 {[%clk 0:03:04.5]} 9. a4 {[%clk 0:03:12.1]} 9... b6 {[%clk
0:03:04.4]} 10. c3 {[%clk 0:03:08.6]} 10... Ba6 {[%clk 0:02:55.2]} 11. exd5
{[%clk 0:03:00]} 11... Nxd5 {[%clk 0:02:54.1]} 12. Nc4 {[%clk 0:02:58.1]} 12...
Re8 {[%clk 0:02:42.9]} 13. Ng5 {[%clk 0:02:40.8]} 13... h6 {[%clk 0:02:40.1]}
14. Nxf7 {[%clk 0:02:02.4]} 14... Kxf7 {[%clk 0:02:29.1]} 15. Qf3+ {[%clk
0:02:02.5]} 15... Nf6 {[%clk 0:02:18.1]} 16. Qxc6 {[%clk 0:01:59]} 16... Qxd3
{[%clk 0:02:18.1]} 17. Qxc7+ {[%clk 0:01:40.2]} 17... Re7 {[%clk 0:02:15.1]} 18.
Nxe5+ {[%clk 0:01:40.1]} 18... Kf8 {[%clk 0:02:14.5]} 19. Qxe7+ {[%clk
0:01:39.6]} 19... Kxe7 {[%clk 0:02:16.4]} 20. Nxd3+ {[%clk 0:01:40.6]} 20... Kd6
{[%clk 0:02:17.3]} 21. Bf4+ {[%clk 0:01:38.2]} 1-0

[Event "*** Titled Tuesday Blitz"]
[Site "Chess.com"]
[Date "2019.09.03"]
[Round "7"]
[White "AllStarShark"]
[Black "Colombiano07"]
[Result "1-0"]
[WhiteElo "2356"]
[BlackElo "2187"]
[TimeControl "180+2"]
[EndTime "16:32:41 PDT"]
[Termination "AllStarShark won by resignation"]

1. c4 {[%clk 0:03:01.9]} 1... Nc6 {[%clk 0:02:53.4]} 2. Nc3 {[%clk 0:02:55.8]}
2... e5 {[%clk 0:02:54]} 3. Nf3 {[%clk 0:02:55.4]} 3... g6 {[%clk 0:02:54.3]} 4.
e3 {[%clk 0:02:55]} 4... Bg7 {[%clk 0:02:55.3]} 5. d4 {[%clk 0:02:55.2]} 5...
exd4 {[%clk 0:02:57.2]} 6. exd4 {[%clk 0:02:56.2]} 6... d6 {[%clk 0:02:55.9]} 7.
Be2 {[%clk 0:02:54.8]} 7... Nf6 {[%clk 0:02:56.6]} 8. O-O {[%clk 0:02:53.4]}
8... O-O {[%clk 0:02:57.2]} 9. b3 {[%clk 0:02:47.3]} 9... Bf5 {[%clk 0:02:56.4]}
10. Bb2 {[%clk 0:02:47.8]} 10... Ne4 {[%clk 0:02:57.3]} 11. Nxe4 {[%clk
0:02:41.9]} 11... Bxe4 {[%clk 0:02:59.2]} 12. Qd2 {[%clk 0:02:35]} 12... Re8
{[%clk 0:02:59]} 13. Rfe1 {[%clk 0:02:35.1]} 13... a5 {[%clk 0:02:32.6]} 14.
Rad1 {[%clk 0:02:20.5]} 14... a4 {[%clk 0:02:33.4]} 15. b4 {[%clk 0:02:18]}
15... a3 {[%clk 0:02:34.5]} 16. Bc3 {[%clk 0:02:16.9]} 16... Qd7 {[%clk
0:02:30.2]} 17. b5 {[%clk 0:01:55.3]} 17... Ne7 {[%clk 0:02:28.3]} 18. d5 {[%clk
0:01:43.3]} 18... b6 {[%clk 0:02:15.4]} 19. Bxg7 {[%clk 0:01:38.9]} 19... Bxf3
{[%clk 0:02:14.8]} 20. Ba1 {[%clk 0:01:23.5]} 20... Bxe2 {[%clk 0:02:15.3]} 21.
Qc3 {[%clk 0:01:07.6]} 21... f6 {[%clk 0:02:14.8]} 22. Qxf6 {[%clk 0:01:04.4]}
22... Nf5 {[%clk 0:02:10.3]} 23. Qh8+ {[%clk 0:01:00.9]} 23... Kf7 {[%clk
0:02:11.2]} 24. Qxh7+ {[%clk 0:01:01.5]} 24... Kf8 {[%clk 0:02:12.6]} 25. Qxd7
{[%clk 0:00:59.3]} 1-0

[Event "*** Titled Tuesday Blitz"]
[Site "Chess.com"]
[Date "2019.09.03"]
[Round "7"]
[White "MalyDominator"]
[Black "MathiasWomacka"]
[Result "0-1"]
[WhiteElo "2307"]
[BlackElo "2197"]
[TimeControl "180+2"]
[EndTime "16:32:53 PDT"]
[Termination "MathiasWomacka won by resignation"]

1. e4 {[%clk 0:03:01.9]} 1... c5 {[%clk 0:02:35.3]} 2. Nf3 {[%clk 0:03:00.4]}
2... d6 {[%clk 0:02:34.3]} 3. d4 {[%clk 0:02:57.3]} 3... cxd4 {[%clk 0:02:36.2]}
4. Nxd4 {[%clk 0:02:59.2]} 4... Nf6 {[%clk 0:02:37.7]} 5. Nc3 {[%clk 0:02:57.5]}
5... a6 {[%clk 0:02:39.1]} 6. h3 {[%clk 0:02:57.9]} 6... e6 {[%clk 0:02:38.9]}
7. g4 {[%clk 0:02:58.7]} 7... b5 {[%clk 0:02:39.5]} 8. Bg2 {[%clk 0:02:59.1]}
8... Bb7 {[%clk 0:02:41]} 9. g5 {[%clk 0:02:58.7]} 9... Nfd7 {[%clk 0:02:41.7]}
10. Be3 {[%clk 0:02:58]} 10... Nc6 {[%clk 0:02:39.5]} 11. a3 {[%clk 0:02:57.8]}
11... Rc8 {[%clk 0:02:37.1]} 12. Qe2 {[%clk 0:02:57.8]} 12... Nce5 {[%clk
0:02:35.2]} 13. O-O {[%clk 0:02:39]} 13... Nc4 {[%clk 0:02:34.2]} 14. Bc1 {[%clk
0:02:39.8]} 14... Be7 {[%clk 0:02:33.5]} 15. h4 {[%clk 0:02:20.2]} 15... Qb6
{[%clk 0:02:13.8]} 16. Nb3 {[%clk 0:02:07.1]} 16... h6 {[%clk 0:02:10]} 17. g6
{[%clk 0:02:05.3]} 17... fxg6 {[%clk 0:02:09.4]} 18. Qg4 {[%clk 0:02:06.1]}
18... Kf7 {[%clk 0:01:56]} 19. Bh3 {[%clk 0:01:58.4]} 19... Nf8 {[%clk
0:01:55.7]} 20. Nd2 {[%clk 0:01:46.3]} 20... Ne5 {[%clk 0:01:54.5]} 21. Qf4+
{[%clk 0:01:47]} 21... Kg8 {[%clk 0:01:48.2]} 22. Nf3 {[%clk 0:01:47]} 22... g5
{[%clk 0:01:45.1]} 23. Qg3 {[%clk 0:01:32]} 23... gxh4 {[%clk 0:01:44.3]} 24.
Nxh4 {[%clk 0:01:23.7]} 24... Bxh4 {[%clk 0:01:43.6]} 0-1

[Event "*** Titled Tuesday Blitz"]
[Site "Chess.com"]
[Date "2019.09.03"]
[Round "7"]
[White "STARMATEcc"]
[Black "aa175"]
[Result "1-0"]
[WhiteElo "2526"]
[BlackElo "2280"]
[TimeControl "180+2"]
[EndTime "16:32:57 PDT"]
[Termination "STARMATEcc won by resignation"]

1. e4 {[%clk 0:03:01.9]} 1... c5 {[%clk 0:02:53.2]} 2. c3 {[%clk 0:03:02]} 2...
Nf6 {[%clk 0:02:53.6]} 3. e5 {[%clk 0:03:02.7]} 3... Nd5 {[%clk 0:02:55.1]} 4.
d4 {[%clk 0:03:03.8]} 4... cxd4 {[%clk 0:02:57]} 5. Nf3 {[%clk 0:03:04.9]} 5...
Nc6 {[%clk 0:02:58.4]} 6. cxd4 {[%clk 0:03:05.5]} 6... d6 {[%clk 0:02:57.9]} 7.
Bc4 {[%clk 0:03:06.3]} 7... Nb6 {[%clk 0:02:58]} 8. Bb5 {[%clk 0:03:07.4]} 8...
dxe5 {[%clk 0:02:55.1]} 9. Nxe5 {[%clk 0:03:08.2]} 9... Qd5 {[%clk 0:02:55.6]}
10. Bxc6+ {[%clk 0:02:41.4]} 10... bxc6 {[%clk 0:02:55.2]} 11. O-O {[%clk
0:02:41.8]} 11... Ba6 {[%clk 0:02:48.3]} 12. Nc3 {[%clk 0:02:40.5]} 12... Qd6
{[%clk 0:02:42.9]} 13. Re1 {[%clk 0:02:36.4]} 13... f6 {[%clk 0:02:30.1]} 14.
Qh5+ {[%clk 0:02:32.5]} 14... g6 {[%clk 0:01:53.3]} 15. Nxg6 {[%clk 0:02:33.2]}
15... hxg6 {[%clk 0:01:19]} 16. Qxh8 {[%clk 0:02:33.4]} 16... O-O-O {[%clk
0:01:14.9]} 17. Qh3+ {[%clk 0:02:30.3]} 17... Kb7 {[%clk 0:01:10.4]} 18. Ne4
{[%clk 0:02:27.3]} 18... Qxd4 {[%clk 0:01:07.1]} 19. Be3 {[%clk 0:02:27.9]}
19... Qxe4 {[%clk 0:01:05.6]} 20. Bxb6 {[%clk 0:02:25.1]} 20... Qxe1+ {[%clk
0:01:06.1]} 21. Rxe1 {[%clk 0:02:24.9]} 21... axb6 {[%clk 0:01:08]} 22. Qh7
{[%clk 0:02:12.1]} 22... Kc7 {[%clk 0:00:57.3]} 23. h4 {[%clk 0:02:08.8]} 23...
Bd3 {[%clk 0:00:56.7]} 24. Rxe7+ {[%clk 0:02:09.5]} 24... Bxe7 {[%clk
0:00:58.6]} 25. Qxe7+ {[%clk 0:02:10.6]} 25... Rd7 {[%clk 0:01:00.3]} 26. Qxf6
{[%clk 0:02:11.7]} 26... Bf5 {[%clk 0:01:01.2]} 27. g4 {[%clk 0:02:10.1]} 27...
Bxg4 {[%clk 0:00:57.4]} 28. Qf4+ {[%clk 0:02:10.2]} 1-0